bitfinex/quotes_ETHUSD_20240729
["timestamp","ask_amount","ask_price","bid_price","bid_amount"]
[1722211657221,1.05687346,3277.8,3277.3,0.19377959]
[1722211657583,1.05687346,3277.8,3277.3,2.63478959]
[1722211657778,2.44061,3277.9,3277.3,2.63478959]
[1722211657978,1.05687047,3277.7,3277.3,2.63478959]
[1722211658207,1.05687047,3277.6,3277.3,2.63478959]
[1722211658514,1.05687047,3277.5,3277.3,2.63478959]
[1722211658722,1.05687047,3277.8,3277.3,2.63478959]
[1722211659012,1.05687047,3277.7,3277.3,2.63478959]
[1722211659239,1.05687047,3277.8,3277.3,2.63478959]
[1722211659593,1.05687047,3277.8,3277.4,2.44095]
[1722211659945,1.05687047,3277.7,3277.5,0.19359463]
[1722211660096,1.05687047,3277.9,3277.5,0.19359463]
[1722211660734,1.05687047,3277.9,3277.5,2.63441463]
[1722211661290,1.05687047,3277.9,3277.5,0.19359463]
[1722211663001,1.05687047,3278.0,3277.5,2.63447463]
[1722211663201,1.05687047,3277.9,3277.5,2.63447463]
[1722211663395,1.05687047,3277.8,3277.5,2.63447463]
[1722211663603,1.05687047,3277.7,3277.5,0.19359463]
[1722211663847,1.05687047,3277.6,3277.5,2.63447463]
[1722211664049,1.05687047,3277.6,3277.5,2.44088]
[1722211664266,2.44045,3278.1,3277.5,2.63441988]
[1722211664566,0.67347552,3278.0,3277.5,2.63435988]
[1722211664711,2.44045,3278.1,3277.5,5.07516988]
[1722211664712,0.67347552,3277.9,3277.5,5.07516988]
[1722211664911,1.73031699,3277.8,3277.5,5.07517988]
[1722211665152,1.05684147,3277.7,3277.5,5.07517988]
[1722211665356,1.05684147,3278.0,3277.7,2.44073]
[1722211665676,1.73028566,3277.9,3277.8,0.19335207]
[1722211665968,1.73028566,3277.9,3277.5,2.44081]
[1722211666253,1.73028566,3277.8,3277.5,2.44081]
[1722211666412,1.73028566,3277.7,3277.3,4.88198]
[1722211666607,1.73031885,3277.6,3277.3,5.59288558]
[1722211666845,1.05687288,3277.5,3277.4,2.44095]
[1722211667086,1.05687288,3277.9,3277.4,2.44095]
[1722211667270,0.67348451,3277.8,3277.2,2.4057]
[1722211667588,0.67348451,3277.7,3277.3,4.88195]
[1722211667771,1.05688113,3277.7,3277.4,2.44094]
[1722211668099,1.73035014,3277.6,3277.4,2.44094]
[1722211668243,2.44057,3278.0,3277.4,2.44094]
[1722211668244,1.05688113,3277.5,3277.4,2.44094]
[1722211668802,1.05688113,3277.5,3277.3,2.44103]
[1722211669105,1.05688113,3277.4,3277.3,2.44103]
[1722211669937,1.05688113,3277.4,3277.3,3.4093314]
[1722211670137,1.05688113,3277.4,3277.3,4.4843314]
[1722211670802,2.44057,3278.0,3277.4,2.44094]
[1722211670963,4.17091375,3277.9,3277.4,2.44094]
[1722211671158,1.73033375,3277.8,3277.4,2.4409]
[1722211671391,1.73033375,3277.7,3277.5,3.51588]
[1722211671596,1.73033375,3277.6,3277.5,3.51588]
[1722211671803,1.73033375,3277.6,3277.5,8.35756]
[1722211672464,1.0568704,3277.6,3277.5,8.35756]
[1722211672660,1.0568704,3277.6,3277.5,9.48761223]
[1722211673875,1.0568704,3277.6,3277.5,11.92849223]
[1722211674103,2.24351759,3278.5,3278.0,2.44044]
[1722211674271,1.73012017,3278.4,3278.0,5.95588]
[1722211674469,1.73012017,3278.3,3278.1,2.44043]
[1722211674702,1.73011299,3278.2,3278.1,2.44043]
[1722211675106,1.96129933,3278.2,3278.1,2.44043]
[1722211675467,1.961277,3278.2,3277.9,2.44052]
[1722211675675,1.73011299,3278.1,3277.9,2.44052]
[1722211675887,1.73011299,3278.0,3277.9,2.44052]
[1722211676381,1.73013196,3278.0,3277.9,2.44052]
[1722211677378,1.73013177,3278.0,3277.9,2.44052]
[1722211679402,1.73013552,3278.0,3277.9,2.44052]
[1722211679615,1.73013552,3278.0,3277.8,1.075]
[1722211679769,1.73013552,3277.9,3277.8,3.51566]
[1722211680312,1.73013552,3277.9,3277.5,3.57091223]
[1722211680602,4.83149,3278.2,3277.4,9.72093]
[1722211680603,1.73013552,3277.8,3277.4,9.72093]
[1722211680825,1.73013552,3277.7,3277.5,2.44082]
[1722211680969,1.05670382,3277.7,3277.6,3.51581]
[1722211681171,1.0568062,3278.0,3277.6,3.51581]
[1722211681426,1.73015307,3277.9,3277.5,2.44082]
[1722211681572,1.73015307,3277.8,3277.5,2.44082]
[1722211681771,1.73015307,3277.7,3277.5,2.44082]
[1722211681976,2.3911,3278.2,3277.6,3.51581]
[1722211682332,1.96148762,3278.1,3277.7,2.44073]
[1722211682474,1.73015079,3278.0,3277.7,2.44073]
[1722211682673,1.73015079,3277.9,3277.7,2.44073]
[1722211682914,1.73012163,3277.8,3277.7,2.44073]
[1722211683073,1.73012163,3277.8,3277.7,4.1709503]
[1722211683512,1.73010421,3277.8,3277.7,4.1709503]
[1722211685078,0.67336042,3277.8,3277.7,4.1709503]
[1722211685280,1.73013135,3278.3,3277.8,2.44065]
[1722211685520,1.96155318,3278.2,3277.9,2.44058]
[1722211685722,1.73025512,3278.1,3277.9,2.44058]
[1722211685925,1.73025512,3278.0,3277.9,2.44058]
[1722211686111,0.67348419,3278.0,3277.9,3.10172503]
[1722211686314,1.73020935,3278.0,3277.7,4.1709103]
[1722211686493,1.73020935,3277.9,3277.7,4.1709103]
[1722211686693,1.05672516,3277.8,3277.7,4.1709103]
[1722211687024,1.05672516,3277.8,3277.7,6.6115803]
[1722211687205,1.05672874,3278.2,3277.8,2.44065]
[1722211687405,1.73019004,3278.1,3277.8,2.44065]
[1722211687654,1.73019004,3278.0,3277.8,2.44065]
[1722211687826,1.73019004,3277.9,3277.8,2.44065]
[1722211689123,1.05672874,3277.9,3277.8,2.44065]
[1722211689328,1.05672874,3278.4,3277.9,2.44056]
[1722211689528,1.73014398,3278.3,3278.0,2.4405]
[1722211689704,1.73014398,3278.2,3278.0,2.4405]
[1722211689906,1.73014398,3278.1,3278.0,2.4405]
[1722211690641,1.73014398,3278.1,3278.0,3.0178984]
[1722211690846,1.05672117,3278.1,3278.0,5.4584084]
[1722211691331,1.73013943,3278.1,3278.0,5.4584084]
[1722211691496,1.05672117,3278.1,3278.0,5.4584084]
[1722211692617,0.23123659,3278.3,3278.0,3.0178984]
[1722211692804,0.23123659,3278.3,3278.2,2.44036]
[1722211693001,1.28788628,3278.3,3278.2,2.44036]
[1722211693215,1.96134863,3278.3,3278.2,2.44036]
[1722211695195,1.28788635,3278.3,3278.2,2.44036]
[1722211695997,1.28779355,3278.3,3278.2,2.44036]
[1722211696203,1.28779355,3278.3,3278.2,3.33493708]
[1722211697429,1.28779355,3278.3,3278.2,2.44036]
[1722211697430,1.9614341,3278.3,3278.2,2.44036]
[1722211697632,1.9614341,3278.3,3278.0,2.44047]
[1722211697819,1.05655696,3278.2,3278.0,4.88091]
[1722211698134,1.05655696,3278.2,3278.0,2.44044]
[1722211698335,1.05655696,3278.2,3278.1,2.44043]
[1722211699032,1.05655696,3278.2,3277.9,23.16552]
[1722211699203,1.05664789,3278.1,3277.9,23.16552]
[1722211699404,1.05664789,3278.0,3277.9,28.2560064]
[1722211699628,1.05664789,3278.2,3278.0,2.44044]
[1722211699826,1.05664789,3278.1,3278.0,2.44044]
[1722211701832,1.05664789,3278.1,3278.0,2.63334588]
[1722211702433,1.05664754,3278.1,3278.0,2.63334588]
[1722211702640,1.05664754,3278.1,3278.0,3.60252051]
[1722211702816,2.3063,3278.5,3278.0,3.60252051]
[1722211703012,1.05663691,3278.1,3278.0,3.60252051]
[1722211703329,2.3063,3278.5,3278.2,2.44035]
[1722211703524,1.73001285,3278.4,3278.2,2.44035]
[1722211703724,2.2521,3278.7,3278.3,0.19271813]
[1722211703925,1.96105507,3278.6,3278.3,0.19271813]
[1722211704131,1.72997809,3278.5,3278.4,2.63284555]
[1722211704511,1.05659404,3278.5,3278.4,2.63284555]
[1722211704838,1.72998586,3278.5,3278.4,2.63284555]
[1722211705057,1.05659404,3278.5,3278.4,2.63284555]
[1722211705701,2.2521,3278.9,3278.5,2.44011]
[1722211705938,1.72998458,3278.8,3278.6,0.19253041]
[1722211706144,1.72998458,3278.7,3278.6,0.19253041]
[1722211709002,1.72998648,3278.7,3278.6,0.19253041]
[1722211709210,1.72998648,3278.7,3278.3,2.44021]
[1722211709408,4.69198,3278.9,3278.3,2.44021]
[1722211709409,1.72998648,3278.6,3278.3,2.44021]
[1722211709635,1.05653764,3278.5,3278.3,2.44021]
[1722211709843,1.05653764,3278.8,3278.3,2.44021]
[1722211710045,1.73006232,3278.7,3278.3,2.44021]
[1722211710252,1.73006232,3278.6,3278.3,2.44021]
[1722211710456,1.05653764,3278.5,3278.3,3.51521]
[1722211710658,1.05653764,3278.8,3278.4,2.44021]
[1722211710858,0.67345317,3278.7,3278.4,2.44021]
[1722211711046,1.72999081,3278.6,3278.4,2.44021]
[1722211711344,1.05653764,3278.5,3278.4,2.44021]
[1722211711563,1.05653764,3278.8,3278.4,2.44021]
[1722211711781,1.73000735,3278.7,3278.4,2.44021]
[1722211711917,0.67346971,3278.6,3278.4,2.44021]
[1722211712313,2.3705,3278.9,3278.4,2.44021]
[1722211712314,1.05654977,3278.5,3278.4,2.44021]
[1722211712747,1.05656257,3278.5,3278.3,1.075]
[1722211712961,1.05656257,3278.4,3278.3,1.075]
[1722211713156,1.05656257,3278.7,3278.2,2.44036]
[1722211713338,0.67352375,3278.6,3278.2,4.88066]
[1722211713541,2.43997,3278.8,3278.2,2.4403]
[1722211713542,1.73008632,3278.5,3278.2,2.4403]
[1722211713728,1.05656257,3278.4,3278.1,20.725]
[1722211713928,1.05656257,3278.7,3278.2,2.44033]
[1722211714171,0.67350837,3278.6,3278.1,19.65]
[1722211714315,4.74321,3278.2,3278.0,7.28]
[1722211714516,1.73007094,3278.1,3278.0,7.28]
[1722211715316,0.67350837,3278.1,3278.0,7.28]
[1722211715525,1.7302915,3278.1,3278.0,7.28]
[1722211716821,1.7302915,3278.1,3278.0,7.47267208]
[1722211717614,1.96161563,3278.1,3278.0,7.47267208]
[1722211718143,1.96160242,3278.1,3278.0,7.47267208]
[1722211718741,3.01840846,3278.1,3278.0,7.47267208]
[1722211719047,4.40204883,3278.1,3278.0,7.47267208]
[1722211720315,4.40204883,3278.1,3278.0,0.19267208]
[1722211720316,4.40203721,3278.1,3278.0,0.19267208]
[1722211720637,4.40203721,3278.1,3277.6,3.0]
[1722211720845,1.73027814,3278.0,3277.5,5.44088]
[1722211721033,1.73027814,3277.9,3277.6,4.52961419]
[1722211721229,1.0567946,3277.8,3277.6,4.52961419]
[1722211721559,2.3028,3278.2,3277.7,2.44073]
[1722211721855,0.67333795,3278.1,3277.7,2.44073]
[1722211722058,0.67333795,3278.0,3277.7,2.44073]
[1722211722240,1.05671852,3277.9,3277.7,2.44073]
[1722211722441,2.3028,3278.2,3277.7,2.44073]
[1722211722442,1.05670629,3277.8,3277.7,2.44073]
[1722211722955,1.0566997,3277.8,3277.7,3.54526442]
[1722211723164,1.0566997,3277.8,3277.7,5.85346442]
[1722211724698,1.0566997,3277.8,3277.7,3.54526442]
[1722211724898,1.0566997,3277.8,3277.7,2.44073]
[1722211725188,2.44029,3278.3,3277.7,2.44073]
[1722211725350,1.73019158,3278.2,3277.7,2.44073]
[1722211725552,1.73019158,3278.1,3277.7,2.44073]
[1722211725805,1.73019158,3278.0,3277.7,2.44073]
[1722211725953,1.05671938,3277.9,3277.7,2.44073]
[1722211726143,1.05671938,3277.8,3277.7,3.33639]
[1722211726350,1.05671938,3277.8,3277.7,4.41139]
[1722211727382,1.05671938,3277.8,3277.7,2.44073]
[1722211727772,1.05671938,3277.8,3277.6,3.0]
[1722211728087,1.05671938,3277.7,3277.5,2.44087]
[1722211728386,1.05671938,3278.0,3277.5,2.44087]
[1722211728590,2.4267,3278.1,3277.5,2.44087]
[1722211728591,1.73042583,3277.9,3277.5,2.44087]
[1722211728760,1.73042583,3277.8,3277.5,2.44087]
[1722211728966,1.73042583,3277.8,3277.4,9.72088]
[1722211728967,1.05680479,3277.7,3277.6,2.4408]
[1722211729152,1.05680479,3278.0,3277.7,2.44072]
[1722211729351,1.73030895,3277.9,3277.7,2.44072]
[1722211729591,1.05677241,3277.8,3277.7,2.44072]
[1722211730773,1.73033664,3277.8,3277.7,2.44072]
[1722211731253,1.73033664,3277.8,3277.5,3.51581]
[1722211731450,1.05677241,3277.7,3277.6,2.44076]
[1722211731664,1.05677241,3278.0,3277.7,2.44072]
[1722211731864,1.73028574,3277.9,3277.7,2.44072]
[1722211732083,2.4267,3278.1,3277.8,0.19308829]
[1722211732298,0.67344711,3278.0,3277.8,0.19308829]
[1722211732505,0.67344711,3277.9,3277.7,2.44072]
[1722211732712,1.05679058,3277.8,3277.7,2.44072]
[1722211732853,1.73023769,3277.8,3277.7,2.44072]
[1722211733363,1.73025025,3277.8,3277.5,4.595402]
[1722211733572,1.05679058,3277.7,3277.5,4.595402]
[1722211733877,1.05679058,3277.6,3277.5,2.44081]
[1722211734078,4.86718,3278.1,3277.5,2.44081]
[1722211734278,1.73032037,3278.0,3277.5,2.44081]
[1722211734588,1.73032037,3277.9,3277.5,2.44081]
[1722211734756,1.73032037,3277.8,3277.5,2.44081]
[1722211734958,4.86718,3278.1,3277.5,2.44081]
[1722211735184,4.17081919,3278.0,3277.5,2.44081]
[1722211735395,1.73028919,3277.9,3277.5,2.44081]
[1722211735614,1.73028919,3277.8,3277.5,2.44081]
[1722211735757,1.73031537,3277.7,3277.5,2.44081]
[1722211735958,1.05679825,3277.6,3277.5,2.44081]
[1722211736256,1.05679825,3277.6,3277.5,3.764492]
[1722211736672,1.05679825,3278.0,3277.5,3.764492]
[1722211736901,0.67349065,3277.9,3277.5,2.44081]
[1722211737091,1.7302889,3277.8,3277.5,2.44081]
[1722211737287,1.05679825,3277.7,3277.5,2.44081]
[1722211737453,1.05679825,3278.0,3277.5,2.44081]
[1722211737664,0.67350267,3277.9,3277.5,2.44081]
[1722211737873,1.73030092,3277.8,3277.5,2.44081]
[1722211738069,1.05679825,3277.7,3277.5,2.44081]
[1722211738272,4.86714,3278.1,3277.5,2.44081]
[1722211738473,1.0568383,3277.6,3277.5,2.44081]
[1722211739495,0.23138366,3278.0,3277.5,2.44081]
[1722211739791,1.73037225,3277.9,3277.5,2.44081]
[1722211740003,1.73037225,3277.8,3277.5,2.44081]
[1722211740200,1.73037225,3277.7,3277.5,2.44081]
[1722211740367,1.05686029,3277.6,3277.5,2.44081]
[1722211741075,0.23138366,3278.0,3277.5,2.44081]
[1722211741274,1.73026175,3277.9,3277.5,2.44081]
[1722211741474,1.73026175,3277.8,3277.5,2.44081]
[1722211741682,1.05681388,3277.7,3277.5,2.44081]
[1722211741881,1.05681388,3277.6,3277.5,2.44081]
[1722211742089,1.05681388,3277.6,3277.5,3.336492]
[1722211743494,1.05680925,3277.6,3277.5,3.336492]
[1722211743879,4.86714,3278.1,3277.5,3.336492]
[1722211744078,1.73028695,3278.0,3277.5,2.44081]
[1722211744396,1.73028695,3277.9,3277.5,2.44081]
[1722211744601,1.05681724,3277.8,3277.5,2.44081]
[1722211744798,1.05681724,3277.7,3277.5,2.44081]
[1722211744978,1.05681724,3277.6,3277.5,2.44081]
[1722211746287,1.05681724,3277.6,3277.5,4.84176007]
[1722211746888,1.05681724,3277.6,3277.5,5.03509839]
[1722211747218,4.86714,3278.1,3277.5,5.03509839]
[1722211747387,1.05681603,3277.6,3277.5,2.63414832]
[1722211747789,1.05681603,3278.0,3277.6,2.44079]
[1722211748104,1.05681603,3278.0,3277.7,2.63391813]
[1722211748883,1.05681603,3278.0,3277.7,0.19320813]
[1722211749084,1.05681603,3278.0,3277.7,1.26820813]
[1722211749277,1.05681603,3278.2,3277.8,2.44061]
[1722211749605,2.437,3278.3,3277.8,2.44061]
[1722211749606,1.73009941,3278.1,3277.8,2.63375553]
[1722211749778,1.05681603,3278.0,3277.8,2.63375553]
[1722211750107,2.437,3278.3,3277.8,2.63375553]
[1722211750108,1.05681603,3277.9,3277.8,2.63375553]
[1722211750314,1.05681603,3277.9,3277.8,5.21370808]
[1722211750477,2.437,3278.3,3277.8,5.21370808]
[1722211750678,1.73010563,3278.2,3277.8,2.63375553]
[1722211750873,1.73010563,3278.1,3277.8,2.63375553]
[1722211751078,1.05669332,3278.0,3277.8,2.63375553]
[1722211751273,2.437,3278.3,3277.8,5.07441553]
[1722211751274,1.05669332,3277.9,3277.8,5.07441553]
[1722211751502,1.05669332,3278.2,3278.1,2.44043]
[1722211751784,1.05669332,3278.2,3278.1,2.63338776]
[1722211752900,1.0566104,3278.2,3278.1,2.63338776]
[1722211753206,1.73007837,3278.2,3278.1,0.19295776]
[1722211753409,1.73007837,3278.2,3278.1,2.63338776]
[1722211753710,1.73007837,3278.2,3278.1,3.24828154]
[1722211754111,1.0566104,3278.2,3278.1,5.68871154]
[1722211756944,2.4593,3278.8,3278.2,2.4403]
[1722211757090,0.67348855,3278.7,3278.3,2.44028]
[1722211757280,1.73008654,3278.6,3278.3,2.63304043]
[1722211757481,1.73008654,3278.5,3278.3,2.63304043]
[1722211757699,1.73008654,3278.4,3278.3,2.63304043]
[1722211758289,1.73008654,3278.4,3278.3,0.19276043]
[1722211758729,1.73008654,3278.4,3278.2,2.44035]
[1722211758931,1.05659799,3278.4,3278.3,0.19276043]
[1722211759227,0.673525,3278.4,3278.2,2.44035]
[1722211759378,1.05662712,3278.7,3278.2,2.44035]
[1722211759379,0.673525,3278.3,3278.2,2.44035]
[1722211759584,1.73015212,3278.3,3278.2,2.44035]
[1722211760115,0.673525,3278.3,3278.2,2.44035]
[1722211761397,1.73014298,3278.3,3278.2,2.44035]
[1722211761597,1.73014298,3278.3,3278.2,2.63317301]
[1722211762210,1.73014298,3278.3,3278.2,0.19282301]
[1722211762409,1.73017508,3278.3,3278.0,20.725]
[1722211762739,1.73017508,3278.2,3278.1,0.19284579]
[1722211763302,0.673525,3278.2,3278.1,0.19284579]
[1722211763501,1.73020126,3278.2,3278.1,0.19284579]
[1722211766617,0.673525,3278.2,3278.1,0.19284579]
[1722211766979,1.73021841,3278.2,3278.1,0.19284579]
[1722211768249,1.73021841,3278.2,3277.9,19.65]
[1722211768404,1.73021841,3278.1,3277.9,19.65]
[1722211768601,1.73021841,3278.0,3277.8,2.44065]
[1722211768805,3.39559341,3277.9,3277.7,19.65]
[1722211769045,1.73029181,3277.8,3277.7,19.65]
[1722211769655,1.05669341,3277.8,3277.7,19.65]
[1722211769867,3.39559341,3278.1,3277.7,19.65]
[1722211770188,1.73038031,3278.0,3277.7,19.65]
[1722211770460,0.67359454,3277.9,3277.7,19.65]
[1722211770639,1.05675018,3277.9,3277.7,19.65]
[1722211770810,1.73025025,3277.8,3277.7,19.65]
[1722211773326,1.73027589,3277.8,3277.7,19.65]
[1722211773928,1.73027589,3277.8,3277.6,3.51574]
[1722211774171,1.05677582,3277.7,3277.6,3.51574]
[1722211774380,1.05677582,3278.0,3277.6,6.51574]
[1722211774530,1.05677582,3277.7,3277.6,6.51574]
[1722211774729,1.05677801,3277.8,3277.7,2.44071]
[1722211774969,1.73024689,3277.8,3277.7,2.44071]
[1722211776360,1.73024689,3277.8,3277.7,5.301369]
[1722211776361,1.05677801,3277.8,3277.7,5.301369]
[1722211776529,2.3591,3278.3,3277.8,2.44065]
[1722211776733,0.67340869,3278.2,3277.8,2.44065]
[1722211776931,0.67340869,3278.1,3277.9,0.19303815]
[1722211777139,1.7301418,3278.0,3277.9,0.19303815]
[1722211777992,1.7301418,3278.0,3277.9,2.63361815]
[1722211778279,1.05673311,3278.0,3277.9,2.63361815]
[1722211778479,0.67344104,3278.0,3277.9,2.63361815]
[1722211778631,1.73017425,3278.0,3277.9,2.63361815]
[1722211779937,1.73016152,3278.0,3277.9,2.63361815]
[1722211780398,0.67344114,3278.0,3277.9,2.63361815]
[1722211780683,1.73015024,3278.0,3277.9,2.63361815]
[1722211781037,1.73015024,3278.0,3277.9,5.39211787]
[1722211781237,1.0567091,3278.0,3277.9,5.39211787]
[1722211781493,1.0567091,3278.5,3278.0,2.44046]
[1722211781642,1.73004021,3278.4,3278.0,1.075]
[1722211781980,1.73004021,3278.3,3278.1,0.19291297]
[1722211782182,2.4813,3278.6,3278.1,0.19291297]
[1722211782183,1.72993893,3278.2,3278.1,2.63329297]
[1722211782386,1.72993893,3278.2,3278.1,3.48280027]
[1722211782880,1.72993893,3278.2,3278.1,5.92323027]
[1722211783038,0.67333111,3278.2,3278.1,5.92323027]
[1722211783235,1.72995156,3278.2,3278.1,5.92323027]
[1722211783464,1.05662045,3278.2,3278.1,5.92323027]
[1722211786597,2.3068,3278.8,3278.6,2.44005]
[1722211786748,1.7298241,3278.7,3278.6,2.44005]
[1722211789776,1.72983002,3278.7,3278.6,2.44005]
[1722211790302,1.72982959,3278.7,3278.6,2.44005]
[1722211791752,1.72982959,3278.7,3278.6,2.63258042]
[1722211792987,1.72982752,3278.7,3278.6,2.63258042]
[1722211793157,1.72982752,3278.7,3278.6,5.92078146]
[1722211795802,0.8936316,3278.7,3278.6,5.92078146]
[1722211796004,3.16870903,3280.0,3278.6,5.92078146]
[1722211796005,3.16870903,3280.1,3278.6,5.92078146]
[1722211796300,2.24034002,3280.5,3278.6,18.58414587]
[1722211796467,1.79443932,3281.7,3280.4,9.75488]
[1722211796800,1.79443932,3281.7,3279.2,8.47959]
[1722211796801,0.1453692,3282.7,3282.4,2.43717]
[1722211796953,0.1453692,3282.7,3282.6,7.25368]
[1722211797154,2.325,3285.4,3282.6,2.9295]
[1722211797155,2.23445191,3285.0,3282.6,2.9295]
[1722211797467,0.00182553,3285.0,3284.1,2.43595]
[1722211797798,0.00182553,3285.0,3283.6,3.0]
[1722211797969,0.00182553,3285.0,3284.5,2.43565]
[1722211798167,0.00182553,3285.0,3284.6,2.65093838]
[1722211798394,0.00182553,3285.0,3284.3,0.08442837]
[1722211798722,0.00182553,3285.0,3283.5,0.08442837]
[1722211799016,0.00182553,3285.0,3283.7,3.0]
[1722211799218,0.00182553,3285.0,3283.8,1.68937154]
[1722211799417,2.568,3284.4,3283.8,0.16828344]
[1722211799633,0.00182553,3285.0,3283.8,0.16828344]
[1722211799817,0.00182553,3285.0,3282.8,3.72550148]
[1722211799818,0.00182553,3285.0,3284.2,2.43585]
[1722211799990,0.00182553,3285.0,3284.2,2.679485]
[1722211800316,0.00182553,3285.0,3283.7,1.32829376]
[1722211800317,2.30792553,3285.0,3284.3,0.16797164]
[1722211800715,2.30792553,3285.0,3283.7,1.32829376]
[1722211800918,2.30792553,3285.0,3284.4,0.16790929]
[1722211800919,2.568,3284.8,3284.4,0.16790929]
[1722211801106,2.568,3284.8,3283.7,1.32829376]
[1722211801107,5.136,3284.8,3283.7,1.32829376]
[1722211801420,2.568,3283.8,3281.8,0.62757883]
[1722211801602,2.3659,3284.1,3281.6,2.4638]
[1722211801603,2.568,3282.8,3282.7,2.43701]
[1722211801803,2.568,3283.2,3282.8,2.4369]
[1722211802012,2.568,3283.2,3283.0,2.43677]
[1722211802621,2.568,3283.2,3282.8,2.43692]
[1722211802821,2.568,3283.6,3282.3,0.29120583]
[1722211802982,2.428,3284.8,3282.1,2.43742]
[1722211803181,2.568,3284.3,3283.9,2.43608]
[1722211803384,4.996,3285.4,3283.0,2.568]
[1722211803580,2.428,3285.4,3284.7,2.43548]
[1722211803890,4.996,3285.4,3284.4,2.43571]
[1722211804122,4.996,3285.4,3284.6,2.43556]
[1722211804908,2.568,3288.0,3283.6,3.24364]
[1722211804909,2.4365,3286.4,3284.8,2.568]
[1722211805233,2.4365,3286.4,3284.9,7.30614]
[1722211805378,2.4365,3286.4,3284.9,7.85614]
[1722211805580,3.421,3287.1,3284.9,12.338854]
[1722211805815,3.421,3287.1,3284.9,11.95645161]
[1722211806013,2.4365,3287.2,3284.9,8.03835761]
[1722211806014,3.421,3286.6,3284.9,8.03835761]
[1722211806214,4.87023,3287.2,3284.9,8.03835761]
[1722211806215,3.421,3286.1,3284.9,8.03835761]
[1722211806425,2.4365,3286.0,3284.9,5.60297761]
[1722211806608,2.4365,3286.0,3284.9,8.03835761]
[1722211807241,3.421,3286.6,3284.9,10.47373761]
[1722211807242,5.7104,3286.6,3284.9,10.47373761]
[1722211807459,0.3185029,3287.9,3287.8,2.43323]
[1722211807598,0.3185029,3287.9,3287.1,2.43369]
[1722211807932,3.421,3288.2,3287.2,0.16616509]
[1722211808304,2.2894,3288.4,3286.9,3.0]
[1722211808504,3.171,3287.9,3286.6,2.43412]
[1722211808717,3.421,3287.4,3287.0,0.16628958]
[1722211808921,3.421,3287.4,3286.9,2.43383]
[1722211809117,3.421,3287.9,3287.1,0.16622733]
[1722211809319,0.22894,3288.3,3287.0,0.16628958]
[1722211809656,0.22894,3288.3,3286.1,3.0]
[1722211809792,0.251834,3288.2,3287.8,2.43318]
[1722211809999,2.2894,3288.4,3287.9,2.5988495]
[1722211810305,2.2894,3288.4,3287.9,0.1657295]
[1722211810505,5.7104,3288.4,3287.9,0.1657295]
[1722211810738,5.7104,3288.4,3287.2,2.43366]
[1722211811032,3.421,3287.9,3286.4,5.43423]
[1722211811197,3.421,3287.9,3286.4,2.43425]
[1722211811392,3.421,3287.9,3285.3,2.43508]
[1722211811719,3.421,3287.4,3285.9,2.43459]
[1722211811919,3.421,3286.9,3285.9,2.43459]
[1722211812140,3.421,3286.9,3285.4,0.243508]
[1722211812316,3.0,3287.6,3286.5,2.43415]
[1722211812317,3.421,3287.4,3286.5,2.43415]
[1722211812814,3.421,3287.4,3286.1,2.43444]
[1722211812815,3.421,3287.4,3285.8,2.43471]
[1722211813010,2.2923,3287.7,3287.2,2.43363]
[1722211813212,2.2923,3287.7,3287.3,2.43357]
[1722211813445,2.56281732,3287.7,3286.8,7.28]
[1722211813642,3.421,3287.4,3286.8,7.28]
[1722211814231,3.0,3287.3,3286.8,7.28]
[1722211814437,2.56281732,3287.7,3286.8,7.28]
[1722211814636,0.26335905,3287.6,3286.8,7.28]
[1722211815259,0.26335905,3287.6,3286.8,9.71396]
[1722211815458,0.26335905,3287.6,3286.8,7.28]
[1722211815886,0.26335905,3287.6,3286.9,2.43389]
[1722211816032,0.26335905,3287.6,3286.8,7.28]
[1722211816236,2.2923,3287.7,3286.8,7.28]
[1722211816461,1.25625757,3287.7,3286.8,7.28]
[1722211816688,0.07077317,3287.8,3287.4,2.43351]
[1722211817035,0.07077317,3287.8,3287.6,2.43336]
[1722211817337,3.93137,3290.4,3287.6,0.243336]
[1722211817338,3.421,3288.9,3287.6,0.243336]
[1722211817558,3.421,3288.9,3288.5,2.43266]
[1722211817836,0.3185587,3289.9,3289.0,2.43234]
[1722211817837,3.7395587,3289.9,3289.0,2.43234]
[1722211818031,3.7395587,3289.9,3288.4,2.43274]
[1722211818275,3.421,3289.4,3288.5,2.43271]
[1722211818480,3.7395587,3289.9,3288.8,2.43249]
[1722211818774,3.7395587,3289.9,3289.0,2.43234]
[1722211818939,3.7395587,3289.9,3288.8,2.43249]
[1722211819131,3.7395587,3289.9,3288.6,2.43263]
[1722211819490,2.2516,3289.1,3288.2,2.4329]
[1722211819634,0.23969692,3289.0,3288.2,2.4329]
[1722211819830,3.421,3288.9,3288.3,2.43286]
[1722211820034,2.2516,3289.8,3288.3,2.43281]
[1722211820234,2.2516,3289.8,3287.7,3.0]
[1722211820235,2.2516,3289.8,3288.9,2.43237]
[1722211820439,2.2516,3289.8,3288.2,2.43293]
[1722211820687,2.2516,3289.8,3288.7,2.43255]
[1722211820837,2.2516,3289.8,3288.8,2.43248]
[1722211821183,2.2516,3289.8,3288.7,2.43255]
[1722211821477,2.2516,3289.8,3289.1,4.86454]
[1722211821996,2.2516,3289.8,3289.1,0.16282312]
[1722211822179,0.3185587,3289.9,3289.1,5.02736312]
[1722211822335,0.3185587,3289.9,3288.9,2.43239]
[1722211822544,2.43187,3289.7,3288.5,3.0]
[1722211822852,2.43198,3289.5,3288.4,5.43279]
[1722211823054,2.43198,3289.5,3288.4,2.43279]
[1722211823249,2.43137,3290.4,3288.5,0.1631962]
[1722211823474,3.421,3290.4,3289.0,2.43234]
[1722211823683,2.43165,3290.0,3288.8,2.43242]
[1722211823903,3.0,3289.9,3288.8,2.43242]
[1722211824053,5.43169,3289.9,3288.9,2.59535747]
[1722211824381,3.0,3289.9,3288.9,0.16294747]
[1722211824596,3.421,3289.9,3288.9,0.16294747]
[1722211824952,5.85273,3289.9,3287.9,3.0]
[1722211825155,3.0,3290.0,3289.1,2.43227]
[1722211825470,2.43119,3290.6,3289.5,2.43192]
[1722211825674,5.8344,3290.7,3289.6,0.16194798]
[1722211825987,2.4134,3290.7,3288.7,3.0]
[1722211826188,2.4134,3290.7,3289.4,2.43204]